[Event "Live Chess"]
[Site "Chess.com"]
[Date "2024.06.02"]
[Round "-"]
[White "slava_ukr"]
[Black "Konovka_Ukraine"]
[Result "1-0"]
[WhiteElo "2336"]
[BlackElo "1732"]
[TimeControl "300"]
[EndTime "5:58:49 PDT"]
[Termination "slava_ukr won by checkmate"]

1. e4 {[%clk 0:04:58.2]} 1... c6 {[%clk 0:04:58.4]} 2. d4 {[%clk 0:04:57.2]}
2... d5 {[%clk 0:04:57.3]} 3. e5 {[%clk 0:04:56.9]} 3... Bf5 {[%clk 0:04:55.7]}
4. g4 {[%clk 0:04:56.5]} 4... Bg6 {[%clk 0:04:54.4]} 5. h4 {[%clk 0:04:55.5]}
5... h6 {[%clk 0:04:53]} 6. h5 {[%clk 0:04:53.8]} 6... Bh7 {[%clk 0:04:51.9]} 7.
e6 {[%clk 0:04:53.3]} 7... Nf6 {[%clk 0:04:49.1]} 8. exf7+ {[%clk 0:04:52.1]}
8... Kxf7 {[%clk 0:04:47.1]} 9. Bd3 {[%clk 0:04:51.3]} 9... Bxd3 {[%clk
0:04:25.7]} 10. Qxd3 {[%clk 0:04:50.1]} 10... e6 {[%clk 0:04:20.7]} 11. f4
{[%clk 0:04:46.4]} 11... Nbd7 {[%clk 0:04:18.9]} 12. Nf3 {[%clk 0:04:44.1]}
12... c5 {[%clk 0:04:14]} 13. Ne5+ {[%clk 0:04:39.7]} 13... Nxe5 {[%clk
0:04:10.3]} 14. dxe5 {[%clk 0:04:31.9]} 14... Ne4 {[%clk 0:04:08.8]} 15. Nc3
{[%clk 0:04:23.8]} 15... c4 {[%clk 0:03:52.5]} 16. Qf3 {[%clk 0:04:22.6]} 16...
Nxc3 {[%clk 0:03:47.7]} 17. bxc3 {[%clk 0:04:21.7]} 17... Qb6 {[%clk 0:03:44.2]}
18. Be3 {[%clk 0:04:19]} 18... Bc5 {[%clk 0:03:43.5]} 19. Bxc5 {[%clk
0:04:17.2]} 19... Qxc5 {[%clk 0:03:43.4]} 20. Qf2 {[%clk 0:04:06.3]} 20... Rhc8
{[%clk 0:03:22.8]} 21. Qxc5 {[%clk 0:04:00.1]} 21... Rxc5 {[%clk 0:03:22.7]} 22.
Rb1 {[%clk 0:03:59.3]} 22... b6 {[%clk 0:03:21.1]} 23. Ke2 {[%clk 0:03:56.7]}
23... Rf8 {[%clk 0:03:18.8]} 24. f5 {[%clk 0:03:47.2]} 24... Ra5 {[%clk
0:03:04.3]} 25. Rhf1 {[%clk 0:03:45.2]} 25... Ke7 {[%clk 0:03:00]} 26. Rf4
{[%clk 0:03:32.6]} 26... Rxa2 {[%clk 0:02:55.5]} 27. Kd2 {[%clk 0:03:31.8]}
27... Ra5 {[%clk 0:02:46.3]} 28. Rbf1 {[%clk 0:03:27.7]} 28... b5 {[%clk
0:02:32.4]} 29. f6+ {[%clk 0:03:26.3]} 29... gxf6 {[%clk 0:02:25.6]} 30. Rxf6
{[%clk 0:03:25.2]} 30... Rxf6 {[%clk 0:02:24.1]} 31. Rxf6 {[%clk 0:03:24.2]}
31... Ra1 {[%clk 0:02:16.6]} 32. Rxh6 {[%clk 0:03:22.7]} 32... a5 {[%clk
0:02:11.6]} 33. Rh7+ {[%clk 0:03:19.7]} 33... Kf8 {[%clk 0:02:10.6]} 34. g5
{[%clk 0:03:18.3]} 34... Rg1 {[%clk 0:02:03.7]} 35. g6 {[%clk 0:03:16.2]} 35...
a4 {[%clk 0:01:58.1]} 36. Rf7+ {[%clk 0:02:50.5]} 36... Kg8 {[%clk 0:01:55.4]}
37. Rf6 {[%clk 0:02:49.4]} 37... Rg5 {[%clk 0:01:21.8]} 38. h6 {[%clk
0:02:44.4]} 38... a3 {[%clk 0:00:28.6]} 39. h7+ {[%clk 0:02:42.7]} 39... Kg7
{[%clk 0:00:25.2]} 40. Rf8 {[%clk 0:02:41.6]} 40... Kxg6 {[%clk 0:00:21.1]} 41.
h8=Q {[%clk 0:02:39.8]} 41... Rf5 {[%clk 0:00:15.2]} 42. Rg8+ {[%clk 0:02:36.8]}
42... Kf7 {[%clk 0:00:12]} 43. Qg7# {[%clk 0:02:35.8]} 1-0

[Event "Live Chess"]
[Site "Chess.com"]
[Date "2024.06.02"]
[Round "-"]
[White "CarmelJane"]
[Black "ACM42"]
[Result "1-0"]
[WhiteElo "2004"]
[BlackElo "2213"]
[TimeControl "300"]
[EndTime "5:58:50 PDT"]
[Termination "CarmelJane won on time"]

1. e4 {[%clk 0:04:56.9]} 1... e6 {[%clk 0:04:58.8]} 2. d4 {[%clk 0:04:55.5]}
2... d5 {[%clk 0:04:57.1]} 3. Nd2 {[%clk 0:04:54.9]} 3... Nf6 {[%clk 0:04:56.2]}
4. e5 {[%clk 0:04:54.1]} 4... Nfd7 {[%clk 0:04:55.7]} 5. c3 {[%clk 0:04:53.8]}
5... c5 {[%clk 0:04:55.2]} 6. f4 {[%clk 0:04:52.8]} 6... Nc6 {[%clk 0:04:54.5]}
7. Ndf3 {[%clk 0:04:51.8]} 7... Qb6 {[%clk 0:04:49.1]} 8. a3 {[%clk 0:04:50.8]}
8... a5 {[%clk 0:04:47.5]} 9. h4 {[%clk 0:04:49.6]} 9... h5 {[%clk 0:04:46.1]}
10. Nh3 {[%clk 0:04:47.5]} 10... g6 {[%clk 0:04:45.2]} 11. Nhg5 {[%clk
0:04:46.4]} 11... Be7 {[%clk 0:04:39.8]} 12. b3 {[%clk 0:04:42.2]} 12... Ndb8
{[%clk 0:04:23.4]} 13. Be3 {[%clk 0:04:34.6]} 13... Na6 {[%clk 0:04:16.6]} 14.
Bd3 {[%clk 0:03:33.8]} 14... Bd7 {[%clk 0:04:14.4]} 15. O-O {[%clk 0:03:25.7]}
15... Rc8 {[%clk 0:04:05.2]} 16. Rc1 {[%clk 0:02:54.1]} 16... Na7 {[%clk
0:04:03.3]} 17. Qc2 {[%clk 0:02:37.5]} 17... a4 {[%clk 0:03:26.4]} 18. Bxg6
{[%clk 0:02:34.1]} 18... fxg6 {[%clk 0:03:17.9]} 19. Qxg6+ {[%clk 0:02:34]}
19... Kd8 {[%clk 0:03:17]} 20. Nf7+ {[%clk 0:02:32.3]} 20... Kc7 {[%clk
0:03:14.7]} 21. Nxh8 {[%clk 0:02:25.6]} 21... Rxh8 {[%clk 0:03:13]} 22. bxa4
{[%clk 0:02:23.3]} 22... Bxa4 {[%clk 0:02:59.7]} 23. Ng5 {[%clk 0:02:20.4]}
23... Bd7 {[%clk 0:02:24.9]} 24. Qg7 {[%clk 0:02:12.4]} 24... Re8 {[%clk
0:02:15.7]} 25. Rb1 {[%clk 0:02:03.3]} 25... Qa5 {[%clk 0:02:09.8]} 26. f5
{[%clk 0:01:57.7]} 26... Qxc3 {[%clk 0:02:04]} 27. Bf2 {[%clk 0:01:56]} 27...
Bxg5 {[%clk 0:01:52.2]} 28. hxg5 {[%clk 0:01:48.5]} 28... exf5 {[%clk
0:01:51.5]} 29. Rfc1 {[%clk 0:01:39.8]} 29... Qxa3 {[%clk 0:01:39.7]} 30. dxc5
{[%clk 0:01:38.9]} 30... Nc6 {[%clk 0:01:34.5]} 31. Qf6 {[%clk 0:01:36.3]} 31...
Rxe5 {[%clk 0:01:17]} 32. Qd6+ {[%clk 0:01:35.4]} 32... Kc8 {[%clk 0:01:02.9]}
33. g6 {[%clk 0:01:27.9]} 33... Qa2 {[%clk 0:00:51.1]} 34. g7 {[%clk 0:01:14.9]}
34... d4 {[%clk 0:00:49.8]} 35. Rb6 {[%clk 0:01:01.5]} 35... Nab4 {[%clk
0:00:39.5]} 36. Rxb4 {[%clk 0:00:54.7]} 36... Re8 {[%clk 0:00:32.8]} 37. Rcb1
{[%clk 0:00:50.6]} 37... Nxb4 {[%clk 0:00:25]} 38. Rxb4 {[%clk 0:00:47.9]} 38...
Bc6 {[%clk 0:00:24.3]} 39. Qxd4 {[%clk 0:00:40.5]} 39... Qe2 {[%clk 0:00:20.7]}
40. Rb2 {[%clk 0:00:35]} 40... Qe7 {[%clk 0:00:17.8]} 41. Bg3 {[%clk 0:00:33]}
41... Rg8 {[%clk 0:00:15.6]} 42. Qf4 {[%clk 0:00:31.3]} 42... Rxg7 {[%clk
0:00:12.9]} 43. Qb8+ {[%clk 0:00:30.5]} 43... Kd7 {[%clk 0:00:11.6]} 44. Rd2+
{[%clk 0:00:29.5]} 44... Ke6 {[%clk 0:00:11]} 45. Re2+ {[%clk 0:00:28.6]} 45...
Be4 {[%clk 0:00:10.4]} 46. Qe5+ {[%clk 0:00:20.5]} 46... Kf7 {[%clk 0:00:09.2]}
47. Qf4 {[%clk 0:00:18.3]} 47... Qxc5+ {[%clk 0:00:08.3]} 48. Bf2 {[%clk
0:00:17]} 48... Qc4 {[%clk 0:00:07.2]} 49. Kh2 {[%clk 0:00:15.5]} 49... h4
{[%clk 0:00:05.9]} 50. Rd2 {[%clk 0:00:13.9]} 50... Rxg2+ {[%clk 0:00:05.3]} 51.
Kh3 {[%clk 0:00:12.8]} 51... Qc3+ {[%clk 0:00:04.5]} 52. Be3 {[%clk 0:00:11.4]}
52... Qg7 {[%clk 0:00:03]} 53. Qc7+ {[%clk 0:00:10.7]} 53... Kg6 {[%clk
0:00:01.9]} 54. Rd6+ {[%clk 0:00:10.4]} 54... Kh5 {[%clk 0:00:00.9]} 55. Qxg7
{[%clk 0:00:08.9]} 55... Rxg7 {[%clk 0:00:00.3]} 56. Rd5 {[%clk 0:00:08.5]}
56... Rg3+ {[%clk 0:00:00.2]} 57. Kh2 {[%clk 0:00:07.4]} 57... Rxe3 {[%clk
0:00:00.1]} 58. Kg1 {[%clk 0:00:07.1]} 1-0

[Event "Live Chess"]
[Site "Chess.com"]
[Date "2024.06.02"]
[Round "-"]
[White "TheSmoulderingMaster"]
[Black "Queensandpawns"]
[Result "0-1"]
[WhiteElo "1764"]
[BlackElo "2285"]
[TimeControl "300"]
[EndTime "5:58:59 PDT"]
[Termination "Queensandpawns won by resignation"]

1. e4 {[%clk 0:04:58.2]} 1... e5 {[%clk 0:04:58.8]} 2. Nf3 {[%clk 0:04:56.8]}
2... Nf6 {[%clk 0:04:58.7]} 3. Bc4 {[%clk 0:04:54.4]} 3... Nc6 {[%clk
0:04:58.6]} 4. O-O {[%clk 0:04:53.4]} 4... Nxe4 {[%clk 0:04:56.6]} 5. Re1 {[%clk
0:04:51.5]} 5... d5 {[%clk 0:04:54.5]} 6. Bb3 {[%clk 0:04:49.1]} 6... Bd6 {[%clk
0:04:53.3]} 7. c3 {[%clk 0:04:48.1]} 7... Nf6 {[%clk 0:04:52.4]} 8. d4 {[%clk
0:04:46.8]} 8... e4 {[%clk 0:04:51.5]} 9. Ne5 {[%clk 0:04:45.7]} 9... Nxe5
{[%clk 0:04:49.9]} 10. dxe5 {[%clk 0:04:44.9]} 10... Bxe5 {[%clk 0:04:49.8]} 11.
Bg5 {[%clk 0:04:40.6]} 11... Qd6 {[%clk 0:04:43.9]} 12. Bxf6 {[%clk 0:04:36.8]}
12... gxf6 {[%clk 0:04:32.8]} 13. Qxd5 {[%clk 0:04:35.1]} 13... Bxh2+ {[%clk
0:04:29.2]} 14. Kh1 {[%clk 0:04:32.8]} 14... Qxd5 {[%clk 0:04:21.6]} 15. Bxd5
{[%clk 0:04:30.9]} 15... Bd6 {[%clk 0:04:20.8]} 16. Bxe4 {[%clk 0:04:26.7]}
16... Be6 {[%clk 0:04:17.9]} 17. Bxb7 {[%clk 0:04:23.7]} 17... Rb8 {[%clk
0:04:16.7]} 18. Bd5 {[%clk 0:04:20.1]} 18... Ke7 {[%clk 0:04:16.3]} 19. b3
{[%clk 0:04:16.1]} 19... h5 {[%clk 0:04:11.4]} 20. Nd2 {[%clk 0:04:14.8]} 20...
Be5 {[%clk 0:04:08.7]} 21. Bxe6 {[%clk 0:04:12.4]} 21... fxe6 {[%clk 0:04:07.1]}
22. Rac1 {[%clk 0:04:08.9]} 22... h4 {[%clk 0:04:06.1]} 23. Nc4 {[%clk
0:04:06.3]} 23... Bf4 {[%clk 0:04:03.5]} 24. Rcd1 {[%clk 0:04:01.7]} 24... Rbg8
{[%clk 0:03:59.7]} 25. Re4 {[%clk 0:03:54.4]} 25... h3 {[%clk 0:03:55.1]} 26. g3
{[%clk 0:03:51.1]} 26... Bd6 {[%clk 0:03:49.6]} 27. Nxd6 {[%clk 0:03:49.3]}
27... cxd6 {[%clk 0:03:49.5]} 28. c4 {[%clk 0:03:45.7]} 28... e5 {[%clk
0:03:43]} 29. Kh2 {[%clk 0:03:37.6]} 29... f5 {[%clk 0:03:40.5]} 30. Rh4 {[%clk
0:03:33.3]} 30... Rxh4 {[%clk 0:03:37.8]} 31. gxh4 {[%clk 0:03:32.4]} 31... Rg2+
{[%clk 0:03:37.6]} 32. Kxh3 {[%clk 0:03:31.4]} 32... Rxf2 {[%clk 0:03:37.2]} 33.
h5 {[%clk 0:03:30.5]} 33... Rxa2 {[%clk 0:02:47.8]} 34. h6 {[%clk 0:03:29]}
34... Kf7 {[%clk 0:02:44.6]} 35. Rg1 {[%clk 0:03:26.9]} 35... Rb2 {[%clk
0:02:29.4]} 36. h7 {[%clk 0:03:25]} 36... Rxb3+ {[%clk 0:02:28.3]} 37. Kh4
{[%clk 0:03:24.3]} 37... Rb8 {[%clk 0:02:28.2]} 38. Kh5 {[%clk 0:03:20.4]} 38...
a5 {[%clk 0:02:20.7]} 39. Kh6 {[%clk 0:03:19.4]} 39... Rh8 {[%clk 0:02:06.3]}
40. Rg7+ {[%clk 0:03:17.2]} 40... Ke6 {[%clk 0:02:04.5]} 41. Ra7 {[%clk
0:03:15.8]} 41... e4 {[%clk 0:01:58.5]} 42. Rxa5 {[%clk 0:03:13]} 42... f4
{[%clk 0:01:57.2]} 43. Ra3 {[%clk 0:02:45.2]} 43... f3 {[%clk 0:01:53.2]} 44. c5
{[%clk 0:02:33.9]} 44... f2 {[%clk 0:01:50.7]} 0-1

[Event "Live Chess"]
[Site "Chess.com"]
[Date "2024.06.02"]
[Round "-"]
[White "Andriy_Yaremovych"]
[Black "Grace6363"]
[Result "1-0"]
[WhiteElo "1666"]
[BlackElo "1133"]
[TimeControl "300"]
[EndTime "5:59:13 PDT"]
[Termination "Andriy_Yaremovych won by resignation"]

1. e4 {[%clk 0:04:58.8]} 1... c5 {[%clk 0:04:47.1]} 2. Nc3 {[%clk 0:04:58.7]}
2... Nc6 {[%clk 0:04:46.5]} 3. f4 {[%clk 0:04:57.2]} 3... g6 {[%clk 0:04:45.9]}
4. Nf3 {[%clk 0:04:57.1]} 4... Bg7 {[%clk 0:04:44.6]} 5. b3 {[%clk 0:04:57]}
5... d6 {[%clk 0:04:43.6]} 6. Bb2 {[%clk 0:04:56.2]} 6... Bg4 {[%clk 0:04:42.8]}
7. Be2 {[%clk 0:04:55.2]} 7... Nd4 {[%clk 0:04:41.9]} 8. h3 {[%clk 0:04:50.4]}
8... Nxf3+ {[%clk 0:04:40.4]} 9. Bxf3 {[%clk 0:04:49.5]} 9... Bxf3 {[%clk
0:04:39.4]} 10. Qxf3 {[%clk 0:04:48.8]} 10... Qb6 {[%clk 0:04:38.8]} 11. O-O-O
{[%clk 0:04:47.2]} 11... Nf6 {[%clk 0:04:34.1]} 12. g4 {[%clk 0:04:45.9]} 12...
O-O-O {[%clk 0:04:32.2]} 13. Kb1 {[%clk 0:04:44.9]} 13... d5 {[%clk 0:04:31]}
14. exd5 {[%clk 0:04:43.6]} 14... Nxd5 {[%clk 0:04:29.9]} 15. Nxd5 {[%clk
0:04:42.7]} 15... Rxd5 {[%clk 0:04:27.6]} 16. Qxd5 {[%clk 0:04:40.5]} 16... Bxb2
{[%clk 0:04:26.1]} 17. Kxb2 {[%clk 0:04:40.4]} 17... Qf6+ {[%clk 0:04:23.6]} 18.
Qe5 {[%clk 0:04:36.6]} 1-0

[Event "Live Chess"]
[Site "Chess.com"]
[Date "2024.06.02"]
[Round "-"]
[White "gobbles19"]
[Black "McFim"]
[Result "1-0"]
[WhiteElo "2248"]
[BlackElo "1733"]
[TimeControl "300"]
[EndTime "5:59:32 PDT"]
[Termination "gobbles19 won by resignation"]

1. e4 {[%clk 0:04:57.4]} 1... c6 {[%clk 0:04:59]} 2. d4 {[%clk 0:04:55.8]} 2...
d5 {[%clk 0:04:58.9]} 3. e5 {[%clk 0:04:54.6]} 3... Bf5 {[%clk 0:04:57.6]} 4. h4
{[%clk 0:04:53.2]} 4... h5 {[%clk 0:04:54.1]} 5. c4 {[%clk 0:04:51.7]} 5... e6
{[%clk 0:04:46.6]} 6. Nc3 {[%clk 0:04:50.4]} 6... a6 {[%clk 0:04:44.9]} 7. Bd3
{[%clk 0:04:45.4]} 7... Bxd3 {[%clk 0:04:40.6]} 8. Qxd3 {[%clk 0:04:45.3]} 8...
dxc4 {[%clk 0:04:39.6]} 9. Qxc4 {[%clk 0:04:44.3]} 9... Ne7 {[%clk 0:04:37.7]}
10. Nf3 {[%clk 0:04:41.1]} 10... Nf5 {[%clk 0:04:35.7]} 11. Bg5 {[%clk 0:04:33]}
11... Be7 {[%clk 0:04:33.4]} 12. Bxe7 {[%clk 0:04:29.9]} 12... Qxe7 {[%clk
0:04:27.8]} 13. Ne4 {[%clk 0:04:19.8]} 13... Nd7 {[%clk 0:04:25]} 14. g3 {[%clk
0:04:15.6]} 14... Nb6 {[%clk 0:04:22.1]} 15. Qb3 {[%clk 0:04:08.9]} 15... Nd5
{[%clk 0:04:18.4]} 16. Nc5 {[%clk 0:04:02.6]} 16... b6 {[%clk 0:03:48]} 17. Ne4
{[%clk 0:03:54.1]} 17... Rc8 {[%clk 0:03:26.2]} 18. O-O {[%clk 0:03:51.4]} 18...
O-O {[%clk 0:03:19]} 19. Rac1 {[%clk 0:03:47.1]} 19... Rc7 {[%clk 0:03:05.5]}
20. a3 {[%clk 0:03:28.9]} 20... Rfc8 {[%clk 0:02:57.6]} 21. Qd3 {[%clk 0:03:27]}
21... a5 {[%clk 0:02:40.4]} 22. Rfe1 {[%clk 0:03:19.8]} 22... c5 {[%clk
0:01:55]} 23. dxc5 {[%clk 0:03:15.8]} 23... bxc5 {[%clk 0:01:53.7]} 24. Nc3
{[%clk 0:03:09.1]} 24... Nxc3 {[%clk 0:01:46.8]} 25. Qxc3 {[%clk 0:03:09]} 25...
Nd4 {[%clk 0:01:26.1]} 26. Ng5 {[%clk 0:02:53.7]} 26... a4 {[%clk 0:01:21.4]}
27. Ne4 {[%clk 0:02:48.6]} 27... Nb3 {[%clk 0:01:17.4]} 28. Rcd1 {[%clk
0:02:44.2]} 28... Rb8 {[%clk 0:00:56]} 29. Qf3 {[%clk 0:02:37.9]} 29... g6
{[%clk 0:00:49.3]} 30. Nf6+ {[%clk 0:02:28.4]} 30... Kg7 {[%clk 0:00:46.2]} 31.
Qf4 {[%clk 0:02:23.9]} 31... Nd4 {[%clk 0:00:39]} 32. Rxd4 {[%clk 0:02:14.9]}
32... cxd4 {[%clk 0:00:37.2]} 33. Qxd4 {[%clk 0:02:14.8]} 33... Rcb7 {[%clk
0:00:25.7]} 34. Re2 {[%clk 0:02:07.5]} 34... Qd8 {[%clk 0:00:23.9]} 35. Qxa4
{[%clk 0:01:59.8]} 35... Rxb2 {[%clk 0:00:19.6]} 36. Rxb2 {[%clk 0:01:58]} 36...
Rxb2 {[%clk 0:00:18]} 37. Ne8+ {[%clk 0:01:57.3]} 37... Kf8 {[%clk 0:00:15.1]}
38. Nd6 {[%clk 0:01:55.6]} 38... Rb1+ {[%clk 0:00:13.2]} 39. Kh2 {[%clk
0:01:52.9]} 39... Kg7 {[%clk 0:00:10.8]} 40. Qf4 {[%clk 0:01:49.6]} 40... Qc7
{[%clk 0:00:08]} 41. Ne8+ {[%clk 0:01:48.3]} 1-0

[Event "Live Chess"]
[Site "Chess.com"]
[Date "2024.06.02"]
[Round "-"]
[White "davigator"]
[Black "NAZRIZ1977"]
[Result "1-0"]
[WhiteElo "2352"]
[BlackElo "2100"]
[TimeControl "300"]
[EndTime "5:59:41 PDT"]
[Termination "davigator won by checkmate"]

1. e4 {[%clk 0:04:56.2]} 1... c5 {[%clk 0:04:58]} 2. Nf3 {[%clk 0:04:53.3]} 2...
d6 {[%clk 0:04:57.1]} 3. d4 {[%clk 0:04:52.7]} 3... cxd4 {[%clk 0:04:56.3]} 4.
Nxd4 {[%clk 0:04:52.5]} 4... Nf6 {[%clk 0:04:55.6]} 5. Nc3 {[%clk 0:04:51.2]}
5... g6 {[%clk 0:04:53.3]} 6. Be3 {[%clk 0:04:49.1]} 6... Bg7 {[%clk 0:04:51.6]}
7. f3 {[%clk 0:04:48.2]} 7... O-O {[%clk 0:04:50.4]} 8. Qd2 {[%clk 0:04:47.8]}
8... Nc6 {[%clk 0:04:49.4]} 9. O-O-O {[%clk 0:04:46.6]} 9... Nxd4 {[%clk
0:04:45.5]} 10. Bxd4 {[%clk 0:04:45.3]} 10... Be6 {[%clk 0:04:44.6]} 11. g4
{[%clk 0:04:41.7]} 11... Qa5 {[%clk 0:04:38.4]} 12. a3 {[%clk 0:04:40.6]} 12...
Rfc8 {[%clk 0:04:03.1]} 13. h4 {[%clk 0:04:38.7]} 13... Rab8 {[%clk 0:03:32.4]}
14. h5 {[%clk 0:04:36.6]} 14... b5 {[%clk 0:03:31.1]} 15. h6 {[%clk 0:04:35.8]}
15... Bh8 {[%clk 0:03:29.1]} 16. g5 {[%clk 0:04:34]} 16... Ne8 {[%clk
0:03:23.5]} 17. Bxh8 {[%clk 0:04:32.6]} 17... Kxh8 {[%clk 0:03:22.7]} 18. Nd5
{[%clk 0:04:31.2]} 18... Qxd2+ {[%clk 0:03:19.3]} 19. Rxd2 {[%clk 0:04:31.1]}
19... Bxd5 {[%clk 0:03:08.2]} 20. exd5 {[%clk 0:04:27.5]} 20... b4 {[%clk
0:02:58.2]} 21. Bh3 {[%clk 0:04:20.9]} 21... Rc5 {[%clk 0:02:53.7]} 22. axb4
{[%clk 0:04:07.1]} 22... Rxb4 {[%clk 0:02:51.9]} 23. Re1 {[%clk 0:04:06.8]}
23... Rc7 {[%clk 0:02:44]} 24. Bg4 {[%clk 0:04:01.1]} 24... Kg8 {[%clk
0:02:39.6]} 25. Kb1 {[%clk 0:03:57.9]} 25... Kf8 {[%clk 0:02:37.8]} 26. b3
{[%clk 0:03:55.9]} 26... a5 {[%clk 0:02:35.3]} 27. Kb2 {[%clk 0:03:54.4]} 27...
a4 {[%clk 0:02:32.7]} 28. Re3 {[%clk 0:03:52.7]} 28... Rcb7 {[%clk 0:02:22.8]}
29. Ka3 {[%clk 0:03:51.4]} 29... axb3 {[%clk 0:02:19.7]} 30. cxb3 {[%clk
0:03:50.4]} 30... Nc7 {[%clk 0:02:15.7]} 31. Bc8 {[%clk 0:03:32.4]} 31... Rb8
{[%clk 0:02:10.3]} 32. Bd7 {[%clk 0:03:29.7]} 32... R4b6 {[%clk 0:01:55.8]} 33.
Bc6 {[%clk 0:03:28.1]} 33... Nb5+ {[%clk 0:01:45.6]} 34. Kb2 {[%clk 0:03:21.8]}
34... Na7 {[%clk 0:01:43.2]} 35. Ba4 {[%clk 0:03:17.9]} 35... Rb4 {[%clk
0:01:39.6]} 36. Ka3 {[%clk 0:03:17]} 36... R4b7 {[%clk 0:01:31.7]} 37. Rc2
{[%clk 0:03:13.8]} 37... Nb5+ {[%clk 0:01:30]} 38. Ka2 {[%clk 0:03:06.5]} 38...
Nd4 {[%clk 0:01:25.8]} 39. Rc4 {[%clk 0:03:03.4]} 39... Nf5 {[%clk 0:01:24.3]}
40. Rec3 {[%clk 0:03:02.3]} 40... e6 {[%clk 0:01:19]} 41. Rc8+ {[%clk
0:02:54.7]} 41... Ke7 {[%clk 0:01:15.4]} 42. R3c7+ {[%clk 0:02:50.6]} 42... Rxc7
{[%clk 0:01:14.4]} 43. Rxb8 {[%clk 0:02:49.9]} 43... Rc2+ {[%clk 0:01:03.5]} 44.
Ka3 {[%clk 0:02:47.7]} 44... Rg2 {[%clk 0:01:00.2]} 45. Re8# {[%clk 0:02:46.3]}
1-0

[Event "Live Chess"]
[Site "Chess.com"]
[Date "2024.06.02"]
[Round "-"]
[White "Pablo_dmp"]
[Black "juniortay"]
[Result "0-1"]
[WhiteElo "1993"]
[BlackElo "2352"]
[TimeControl "300"]
[EndTime "5:59:54 PDT"]
[Termination "juniortay won by resignation"]

1. e4 {[%clk 0:04:58.8]} 1... e5 {[%clk 0:04:58.8]} 2. Nf3 {[%clk 0:04:57.9]}
2... Nf6 {[%clk 0:04:58.2]} 3. d4 {[%clk 0:04:56.6]} 3... Nxe4 {[%clk
0:04:56.6]} 4. dxe5 {[%clk 0:04:54.9]} 4... Bc5 {[%clk 0:04:55.1]} 5. Be3 {[%clk
0:04:17.6]} 5... Bxe3 {[%clk 0:04:52.1]} 6. fxe3 {[%clk 0:04:17.5]} 6... d5
{[%clk 0:04:51.7]} 7. exd6 {[%clk 0:04:16]} 7... Nxd6 {[%clk 0:04:50.3]} 8. Bd3
{[%clk 0:04:12.8]} 8... O-O {[%clk 0:04:49.4]} 9. Nc3 {[%clk 0:03:43.3]} 9...
Nc6 {[%clk 0:04:47.4]} 10. O-O {[%clk 0:03:27]} 10... Bg4 {[%clk 0:04:44.8]} 11.
h3 {[%clk 0:02:51.8]} 11... Bh5 {[%clk 0:04:42.7]} 12. Qe1 {[%clk 0:02:45.4]}
12... Re8 {[%clk 0:04:37.8]} 13. e4 {[%clk 0:02:42.2]} 13... Bxf3 {[%clk
0:04:31.7]} 14. Rxf3 {[%clk 0:02:41]} 14... Ne5 {[%clk 0:04:31.1]} 15. Rg3
{[%clk 0:02:37.9]} 15... c6 {[%clk 0:04:27.4]} 16. Qe3 {[%clk 0:02:33.3]} 16...
Qb6 {[%clk 0:04:17.9]} 17. Qxb6 {[%clk 0:02:31.6]} 17... axb6 {[%clk 0:04:15.9]}
18. a3 {[%clk 0:02:29.8]} 18... Rad8 {[%clk 0:04:08.7]} 19. Rf1 {[%clk
0:02:27.9]} 19... f6 {[%clk 0:04:06.9]} 20. Ne2 {[%clk 0:02:22.9]} 20... Kf8
{[%clk 0:03:56.5]} 21. Nf4 {[%clk 0:02:17.3]} 21... Ndc4 {[%clk 0:03:53.8]} 22.
Nh5 {[%clk 0:02:13.9]} 22... Rd7 {[%clk 0:03:47.8]} 23. Kh2 {[%clk 0:01:05]}
23... Nxd3 {[%clk 0:03:36.4]} 24. cxd3 {[%clk 0:01:02.7]} 24... Nxb2 {[%clk
0:03:29.8]} 25. d4 {[%clk 0:00:59.6]} 25... Rxe4 {[%clk 0:03:23.3]} 26. Rb3
{[%clk 0:00:58.4]} 26... Nc4 {[%clk 0:03:20.4]} 27. Rb4 {[%clk 0:00:48.5]} 27...
Rdxd4 {[%clk 0:03:17.7]} 0-1

[Event "Live Chess"]
[Site "Chess.com"]
[Date "2024.06.02"]
[Round "-"]
[White "Dhaydon19"]
[Black "alicechristina"]
[Result "1-0"]
[WhiteElo "2653"]
[BlackElo "1950"]
[TimeControl "300"]
[EndTime "6:00:23 PDT"]
[Termination "Dhaydon19 won by resignation"]

1. d4 {[%clk 0:04:57.9]} 1... d5 {[%clk 0:04:49.4]} 2. Nf3 {[%clk 0:04:57.1]}
2... e6 {[%clk 0:04:47.9]} 3. g3 {[%clk 0:04:56.7]} 3... Nf6 {[%clk 0:04:46.5]}
4. Bg2 {[%clk 0:04:55.8]} 4... Be7 {[%clk 0:04:46]} 5. c3 {[%clk 0:04:55.4]}
5... O-O {[%clk 0:04:44.9]} 6. O-O {[%clk 0:04:54.9]} 6... c5 {[%clk 0:04:44]}
7. Qc2 {[%clk 0:04:54.4]} 7... Nc6 {[%clk 0:04:41.8]} 8. dxc5 {[%clk 0:04:53.7]}
8... Bxc5 {[%clk 0:04:39.8]} 9. Nbd2 {[%clk 0:04:53.4]} 9... b6 {[%clk
0:04:36.1]} 10. e4 {[%clk 0:04:52.4]} 10... dxe4 {[%clk 0:04:31.2]} 11. Nxe4
{[%clk 0:04:50.9]} 11... Nxe4 {[%clk 0:04:29.3]} 12. Qxe4 {[%clk 0:04:50.5]}
12... Bb7 {[%clk 0:04:28]} 13. Ng5 {[%clk 0:04:49.6]} 13... g6 {[%clk
0:04:20.8]} 14. Qh4 {[%clk 0:04:48.6]} 14... h5 {[%clk 0:04:16.3]} 15. g4 {[%clk
0:04:47.7]} 15... Be7 {[%clk 0:03:16.2]} 16. gxh5 {[%clk 0:04:45.4]} 16... Bxg5
{[%clk 0:03:04.2]} 17. Bxg5 {[%clk 0:04:43.1]} 17... Qd7 {[%clk 0:03:03.1]} 18.
Bf6 {[%clk 0:04:39.8]} 18... Rac8 {[%clk 0:02:39.6]} 19. Rad1 {[%clk 0:04:36]}
19... Qc7 {[%clk 0:02:26]} 20. Qg5 {[%clk 0:04:21.6]} 1-0

[Event "Live Chess"]
[Site "Chess.com"]
[Date "2024.06.02"]
[Round "-"]
[White "nitrofish07"]
[Black "Bradfield133"]
[Result "0-1"]
[WhiteElo "2062"]
[BlackElo "1864"]
[TimeControl "300"]
[EndTime "6:00:33 PDT"]
[Termination "Bradfield133 won by resignation"]

1. d4 {[%clk 0:04:56.8]} 1... d6 {[%clk 0:04:58.6]} 2. c4 {[%clk 0:04:54.9]}
2... f5 {[%clk 0:04:56.6]} 3. Nf3 {[%clk 0:04:45.2]} 3... Nf6 {[%clk 0:04:55.1]}
4. Bg5 {[%clk 0:04:44.5]} 4... Nbd7 {[%clk 0:04:53.5]} 5. Nbd2 {[%clk
0:04:42.2]} 5... c6 {[%clk 0:04:45.7]} 6. Qc2 {[%clk 0:04:23]} 6... g6 {[%clk
0:04:43.1]} 7. e4 {[%clk 0:04:22.2]} 7... fxe4 {[%clk 0:04:38.6]} 8. Nxe4 {[%clk
0:04:21.8]} 8... Nxe4 {[%clk 0:04:36.5]} 9. Qxe4 {[%clk 0:04:21.7]} 9... Bg7
{[%clk 0:04:35.1]} 10. Bd3 {[%clk 0:04:17.8]} 10... c5 {[%clk 0:04:22.2]} 11. d5
{[%clk 0:03:55]} 11... Bxb2 {[%clk 0:04:09.9]} 12. Bh6 {[%clk 0:03:36.7]} 12...
Nf6 {[%clk 0:03:54.4]} 13. Qh4 {[%clk 0:03:34.5]} 13... Bxa1 {[%clk 0:03:48.5]}
14. O-O {[%clk 0:03:33.8]} 14... Bc3 {[%clk 0:03:27.5]} 15. Rc1 {[%clk
0:03:30.7]} 15... Qa5 {[%clk 0:03:21.5]} 16. Bg7 {[%clk 0:03:21.3]} 16... Rg8
{[%clk 0:03:13.4]} 17. Bh6 {[%clk 0:03:17.4]} 17... Bg4 {[%clk 0:02:49.4]} 18.
Qxg4 {[%clk 0:02:51.8]} 18... Nxg4 {[%clk 0:02:46.1]} 0-1